bitfinex-derivatives/quotes_BTCF0:USTF0_20251023
["timestamp","ask_amount","ask_price","bid_price","bid_amount"]
[1761182128449,0.83800899,108380.0,108370.0,0.02482582]
[1761182128652,0.51868899,108380.0,108370.0,0.02482582]
[1761182128945,0.51868899,108380.0,108360.0,0.1392]
[1761182129145,0.08314,108380.0,108370.0,0.002]
[1761182129351,0.48314,108380.0,108370.0,0.002]
[1761182129542,0.01964,108360.0,108340.0,0.12884149]
[1761182129749,0.06342,108350.0,108340.0,0.15168691]
[1761182129954,0.09896899,108350.0,108340.0,0.48752691]
[1761182130763,0.09896899,108350.0,108340.0,0.02846031]
[1761182130949,0.09896899,108350.0,108340.0,0.36422031]
[1761182131257,0.09896899,108350.0,108340.0,0.45651171]
[1761182131553,0.09896899,108350.0,108340.0,0.51974171]
[1761182132147,0.09896899,108350.0,108340.0,0.51973014]
[1761182132449,0.06342,108350.0,108340.0,0.52073014]
[1761182132651,0.09896899,108350.0,108340.0,0.52073014]
[1761182132853,0.09896899,108350.0,108340.0,0.52173014]
[1761182133659,0.09896899,108350.0,108340.0,0.52273014]
[1761182134852,0.031,108350.0,108340.0,0.92273014]
[1761182135250,0.031,108350.0,108340.0,0.03144874]
[1761182135251,0.83012011,108350.0,108340.0,0.03144874]
[1761182135451,0.031,108330.0,108320.0,9.366e-05]
[1761182135644,0.09896899,108330.0,108320.0,9.366e-05]
[1761182135846,0.09896899,108330.0,108320.0,0.01356351]
[1761182136848,0.09896899,108330.0,108320.0,0.16910191]
[1761182137055,0.09896899,108330.0,108320.0,0.16363206]
[1761182137254,0.09896899,108330.0,108320.0,0.17709661]
[1761182137452,0.09896899,108330.0,108320.0,0.18009661]
[1761182138046,0.09896899,108330.0,108320.0,0.18009709]
[1761182138445,0.09896899,108330.0,108320.0,0.16663206]
[1761182138851,0.09896899,108330.0,108320.0,0.18008625]
[1761182140155,0.09896899,108330.0,108320.0,0.51540625]
[1761182142055,0.08306,108340.0,108330.0,0.1555299]
[1761182142357,0.08306,108340.0,108320.0,1.18786318]
[1761182142358,0.06342,108350.0,108340.0,0.1555169]
[1761182142662,0.09896899,108350.0,108340.0,0.82182802]
[1761182142850,0.06342,108350.0,108340.0,0.82182802]
[1761182143760,0.08306,108360.0,108350.0,0.1555129]
[1761182143956,0.08314,108380.0,108370.0,0.0922659]
[1761182144162,0.08314,108380.0,108370.0,0.4906559]
[1761182144453,0.11868899,108380.0,108370.0,0.4906559]
[1761182144860,0.09896899,108380.0,108370.0,0.4906559]
[1761182145060,0.06822,108390.0,108380.0,0.1241973]
[1761182145258,0.06822,108390.0,108380.0,0.1554873]
[1761182145461,0.10376899,108390.0,108380.0,0.1554873]
[1761182146162,0.06822,108390.0,108380.0,0.48663842]
[1761182146356,0.06822,108390.0,108380.0,0.48863842]
[1761182146553,0.10376899,108390.0,108380.0,0.36998]
[1761182146860,0.10376899,108390.0,108380.0,0.4622373]
[1761182147062,0.10376899,108390.0,108380.0,0.36998]
[1761182147259,0.10376899,108390.0,108380.0,0.37198]
[1761182147461,0.10376899,108390.0,108380.0,0.39466601]
[1761182147850,0.10376899,108390.0,108380.0,0.05762601]
[1761182148051,0.10476899,108390.0,108380.0,0.39946601]
[1761182148465,0.10376899,108390.0,108380.0,0.39346601]
[1761182148766,0.0048,108390.0,108380.0,1.25822443]
[1761182149160,0.0048,108390.0,108380.0,1.25522443]
[1761182150065,0.0048,108390.0,108380.0,0.84508443]
[1761182150066,0.06822,108390.0,108380.0,0.84508443]
[1761182150366,0.06822,108390.0,108380.0,0.51405331]
[1761182150367,0.10376899,108390.0,108380.0,0.51405331]
[1761182150562,0.10376899,108390.0,108380.0,0.17917331]
[1761182150859,0.10376899,108390.0,108380.0,0.51405331]
[1761182152360,0.10376899,108390.0,108380.0,0.08691601]
[1761182152560,0.10376899,108390.0,108380.0,0.4912873]
[1761182153364,0.10376899,108390.0,108380.0,0.03294]
[1761182153562,0.10376899,108390.0,108380.0,0.001]
[1761182153862,0.10376899,108390.0,108380.0,0.33556]
[1761182154069,0.0798,108380.0,108370.0,0.1513255]
[1761182154270,0.11534899,108380.0,108370.0,0.4858455]
[1761182154970,0.11534899,108380.0,108370.0,0.39354]
[1761182155367,0.11534899,108380.0,108370.0,0.39454]
[1761182155860,0.11534899,108380.0,108370.0,0.03093]
[1761182156061,0.51534899,108380.0,108370.0,0.001]
[1761182157564,0.51934899,108380.0,108360.0,0.4856923]
[1761182157764,0.09574899,108370.0,108360.0,0.4856923]
[1761182158573,0.09574899,108370.0,108360.0,0.4854923]
[1761182159270,0.09574899,108370.0,108360.0,0.4854523]
[1761182159565,0.09574899,108370.0,108360.0,0.06006]
[1761182159768,0.49574899,108370.0,108360.0,0.001]
[1761182160071,0.0798,108360.0,108340.0,0.4854312]
[1761182160272,0.11534899,108360.0,108340.0,0.4854312]
[1761182160465,0.09574899,108350.0,108340.0,0.4854312]
[1761182161471,0.09574899,108350.0,108340.0,0.4864312]
[1761182162176,0.09574899,108350.0,108340.0,0.4874312]
[1761182162569,0.09574899,108350.0,108340.0,0.4884312]
[1761182163777,0.04955632,108380.0,108370.0,0.0922658]
[1761182163981,0.11550259,108420.0,108400.0,0.0980503]
[1761182164186,0.06915259,108460.0,108450.0,0.0921978]
[1761182164478,0.05129,108460.0,108430.0,0.76367922]
[1761182164780,0.0602,108450.0,108440.0,0.0922002]
[1761182164972,0.0602,108450.0,108440.0,0.10627806]
[1761182165184,0.0602,108450.0,108440.0,0.13024582]
[1761182165378,0.0602,108450.0,108440.0,0.10627806]
[1761182166275,0.0602,108450.0,108440.0,0.13021245]
[1761182167174,0.0602,108450.0,108440.0,0.13121245]
[1761182168390,0.0602,108450.0,108440.0,0.01507176]
[1761182168588,0.4602,108450.0,108440.0,0.01507176]
[1761182169092,0.4602,108450.0,108440.0,0.01541557]
[1761182170594,0.0196,108540.0,108440.0,0.51280861]
[1761182170799,0.0196,108500.0,108480.0,0.21933872]
[1761182171097,0.05129,108500.0,108480.0,0.32592409]
[1761182171395,0.24754037,108500.0,108480.0,0.03824421]
[1761182171593,0.24754037,108500.0,108480.0,0.13041621]
[1761182171783,0.0798,108500.0,108480.0,0.32592629]
[1761182171984,0.4204,108500.0,108480.0,0.34975824]
[1761182172288,0.0058,108510.0,108500.0,0.0921553]
[1761182172487,0.0058,108510.0,108500.0,0.23375429]
[1761182172790,0.065,108510.0,108500.0,0.32590959]
[1761182173293,0.40636,108510.0,108500.0,0.01441557]
[1761182173591,0.81136,108510.0,108500.0,0.01441557]
[1761182173988,0.07,108510.0,108500.0,0.23375429]
[1761182174293,0.0108,108510.0,108500.0,0.72590205]
[1761182174494,0.0108,108510.0,108500.0,0.23374675]
[1761182174692,0.071,108510.0,108500.0,0.01440803]
[1761182175289,0.0108,108510.0,108500.0,0.72590205]
[1761182176291,0.0108,108510.0,108500.0,0.32590205]
[1761182176489,0.071,108510.0,108500.0,0.01440803]
[1761182176789,0.471,108510.0,108500.0,0.01440803]
[1761182177296,0.071,108510.0,108500.0,0.01440803]
[1761182177599,0.471,108510.0,108500.0,0.01440803]
[1761182179295,0.471,108510.0,108500.0,0.01437699]
[1761182179984,0.26309486,108580.0,108500.0,0.42658455]
[1761182180183,0.56084516,108580.0,108550.0,0.31144712]
[1761182180395,0.56084516,108580.0,108560.0,0.15626128]
[1761182180583,0.0602,108570.0,108560.0,0.17063827]
[1761182180895,0.0602,108570.0,108560.0,0.01437699]
[1761182181295,0.4602,108570.0,108560.0,0.01437699]
[1761182181899,0.4612,108570.0,108560.0,0.01437699]
[1761182182196,0.0196,108540.0,108530.0,0.31146212]
[1761182182388,0.344,108540.0,108530.0,0.37407212]
[1761182182589,0.344,108540.0,108530.0,0.5303334]
[1761182183191,0.344,108540.0,108530.0,0.83821]
[1761182183389,0.43527,108540.0,108530.0,0.21887128]
[1761182183607,0.83527,108540.0,108510.0,0.31148272]
[1761182183789,0.43527,108540.0,108510.0,0.467744]
[1761182183988,0.43527,108540.0,108520.0,0.15626128]
[1761182184599,0.08079,108510.0,108500.0,0.00469767]
[1761182184797,0.02412,108500.0,108470.0,0.0921747]
[1761182185000,0.42487,108490.0,108480.0,0.15626128]
[1761182185198,0.38556,108490.0,108480.0,0.31293358]
[1761182185402,0.344,108490.0,108480.0,0.5322723]
[1761182185705,0.34408824,108490.0,108480.0,0.5322723]
[1761182186404,0.34408824,108490.0,108480.0,0.5392723]
[1761182186610,0.34408824,108490.0,108480.0,0.31993358]
[1761182186905,0.42487824,108490.0,108480.0,0.22776128]
[1761182187098,0.42487824,108490.0,108480.0,0.23076128]
[1761182187303,0.42487824,108490.0,108480.0,0.19851128]
[1761182187501,0.42487824,108490.0,108480.0,0.29068358]
[1761182187898,0.42487824,108490.0,108480.0,0.28768358]
[1761182188099,0.42487824,108490.0,108480.0,0.31293358]
[1761182188395,0.42487824,108490.0,108480.0,0.31393358]
[1761182188800,0.42487824,108490.0,108480.0,0.31493358]
[1761182190506,0.42487824,108490.0,108480.0,0.002]
[1761182190507,0.82487824,108490.0,108480.0,0.002]
[1761182190807,0.82487824,108490.0,108430.0,0.03432616]
[1761182190808,0.10491,108440.0,108430.0,0.03432616]
[1761182191008,0.44891,108440.0,108430.0,0.04801733]
[1761182191217,0.44897925,108440.0,108430.0,0.20427861]
[1761182192114,0.44897925,108440.0,108430.0,0.17302861]
[1761182192311,0.02412,108520.0,108490.0,0.04044]
[1761182192518,0.0048,108510.0,108500.0,0.32736]
[1761182192815,0.08559,108510.0,108500.0,0.10802128]
[1761182193513,0.08559,108510.0,108500.0,0.17290965]
[1761182193713,0.36699,108510.0,108500.0,0.21188965]
[1761182193914,0.08559,108510.0,108500.0,0.52338367]
[1761182194208,0.43567,108510.0,108500.0,0.52338367]
[1761182194808,0.43567,108510.0,108500.0,0.30404495]
[1761182195014,0.43567,108510.0,108500.0,0.13246965]
[1761182195213,0.43567,108510.0,108500.0,0.17290965]
[1761182195407,0.43567,108510.0,108480.0,0.05679249]
[1761182195408,0.02412,108500.0,108480.0,0.02431883]
[1761182195724,0.02412,108500.0,108480.0,0.10802128]
[1761182195725,0.43087,108490.0,108480.0,0.10802128]
[1761182196011,0.43087,108490.0,108480.0,0.14846128]
[1761182196209,0.39144,108490.0,108480.0,0.18744128]
[1761182197415,0.04148,108490.0,108480.0,0.18744128]
[1761182197615,0.31916,108490.0,108480.0,0.18744128]
[1761182197916,0.43243,108490.0,108480.0,0.18744128]
[1761182198110,0.43343,108490.0,108480.0,0.18744128]
[1761182198616,0.43043,108490.0,108480.0,0.18844128]
[1761182200124,0.43043,108490.0,108480.0,0.18744128]
[1761182200315,0.43543,108490.0,108480.0,0.10802128]
[1761182203409,0.65476872,108490.0,108480.0,0.10802128]
[1761182203722,1.05476872,108490.0,108480.0,0.10802128]
[1761182204915,0.04148,108460.0,108450.0,0.09743132]
[1761182205117,0.42915,108460.0,108450.0,0.10373883]
[1761182205320,0.42915,108460.0,108450.0,0.18744128]
[1761182205624,0.0048,108550.0,108540.0,0.10395]
[1761182205918,0.0048,108550.0,108540.0,0.07942]
[1761182205919,0.43583,108550.0,108540.0,0.07942]
[1761182206125,0.43583,108550.0,108540.0,0.0135888]
[1761182206618,0.43583,108550.0,108540.0,0.0930088]
[1761182207017,0.43783,108550.0,108540.0,0.0930088]
[1761182207416,0.0068,108550.0,108540.0,0.85317835]
[1761182207722,0.00208802,108550.0,108540.0,0.25822431]
[1761182207922,0.00708802,108550.0,108540.0,0.65822431]
[1761182208117,0.00708802,108550.0,108540.0,0.87756303]
[1761182209323,0.00708802,108550.0,108540.0,0.85317835]
[1761182209623,0.00708802,108550.0,108540.0,0.87756303]
[1761182209816,0.00708802,108550.0,108540.0,0.85317835]
[1761182210622,0.00708802,108550.0,108540.0,0.45317835]
[1761182210825,0.00708802,108550.0,108540.0,0.1851256]
[1761182211318,0.00708802,108550.0,108540.0,0.0930088]
[1761182211530,0.08787802,108550.0,108540.0,0.0930088]
[1761182211823,0.08787802,108550.0,108540.0,0.0540288]
[1761182212521,0.48787802,108550.0,108540.0,0.0540288]
[1761182213825,0.48787802,108550.0,108540.0,0.0135888]
[1761182214420,0.02368,108540.0,108510.0,0.092142]
[1761182214724,0.59257872,108540.0,108510.0,0.092142]
[1761182214925,0.59257872,108540.0,108500.0,0.24386872]
[1761182214926,0.59257872,108540.0,108500.0,0.33601572]
[1761182215128,0.37324,108540.0,108500.0,0.33601572]
[1761182215323,0.04085,108520.0,108510.0,0.1746021]
[1761182215525,0.08059,108530.0,108520.0,0.04199]
[1761182216325,0.08059,108530.0,108500.0,0.24386872]
[1761182217034,0.34916,108520.0,108510.0,0.1745999]
[1761182217323,0.02368,108540.0,108520.0,0.0921284]
[1761182217528,0.34908,108530.0,108520.0,0.08246]
[1761182217730,0.42967,108530.0,108520.0,0.08246]
[1761182218029,0.42967,108530.0,108520.0,0.1745938]
[1761182218430,0.42967,108530.0,108520.0,0.08246]
[1761182218930,0.19756516,108580.0,108570.0,0.08246]
[1761182219130,0.52117388,108580.0,108540.0,0.1171619]
[1761182219326,0.52117388,108580.0,108540.0,0.0921119]
[1761182219525,0.52117388,108580.0,108540.0,0.1341019]
[1761182220126,0.52117388,108580.0,108550.0,0.0921071]
[1761182220332,0.30183516,108580.0,108550.0,0.0921071]
[1761182220525,0.3498,108570.0,108540.0,0.31244892]
[1761182220720,0.3498,108570.0,108550.0,0.0921073]
[1761182220923,0.04085,108560.0,108550.0,0.1340973]
[1761182221122,0.39045,108560.0,108550.0,0.1340973]
[1761182221517,0.43019,108560.0,108540.0,0.31244832]
[1761182221725,0.45387,108560.0,108540.0,0.0931096]
[1761182222132,0.45387,108560.0,108550.0,0.0921083]
[1761182222327,0.45387,108560.0,108550.0,0.04299]
[1761182222534,0.45387,108560.0,108550.0,0.08346]
[1761182222535,0.43019,108560.0,108550.0,0.08346]
[1761182222732,0.43019,108560.0,108550.0,0.08246]
[1761182222929,0.22124516,108580.0,108550.0,0.30179872]
[1761182223129,0.34928,108570.0,108550.0,0.1745683]
[1761182223330,0.39013,108570.0,108550.0,0.39390702]
[1761182223631,0.22124516,108580.0,108550.0,0.1745683]
[1761182223834,0.04085,108560.0,108550.0,0.1745683]
[1761182224033,0.08059,108560.0,108550.0,0.08246]
[1761182224235,0.10427,108560.0,108550.0,0.04199]
[1761182224537,0.10427,108560.0,108540.0,0.0921129]
[1761182224729,0.39001,108550.0,108540.0,0.19870633]
[1761182225037,0.42975,108550.0,108530.0,0.0921211]
[1761182225333,0.42975,108550.0,108530.0,0.1341111]
[1761182225732,0.42975,108550.0,108530.0,0.04199]
[1761182225930,0.08059,108530.0,108520.0,0.04199]
[1761182226130,0.42943,108530.0,108520.0,0.04199]
[1761182226432,0.42943,108530.0,108520.0,0.05511643]
[1761182227027,0.42943,108530.0,108520.0,0.01312643]
[1761182227828,0.82943,108530.0,108520.0,0.01312643]
[1761182231636,0.02368,108520.0,108510.0,0.00011732]
[1761182231842,0.10427,108520.0,108510.0,0.01326403]
[1761182232046,0.51427,108520.0,108510.0,0.01326403]
[1761182232234,0.51427,108520.0,108500.0,0.00460808]
[1761182232433,0.42855,108510.0,108500.0,0.00460808]
[1761182232833,0.42855,108510.0,108500.0,0.07079843]
[1761182232834,0.42843,108510.0,108500.0,0.07079843]
[1761182233038,0.08059,108510.0,108500.0,0.11126843]
[1761182233245,0.42841941,108510.0,108500.0,0.11126843]
[1761182233443,0.42841941,108510.0,108500.0,0.02880843]
[1761182234746,0.82841941,108510.0,108500.0,0.02880843]
[1761182235647,0.83841941,108510.0,108480.0,0.02433001]
[1761182235842,0.08059,108490.0,108480.0,0.02424062]
[1761182236040,0.42810866,108490.0,108480.0,0.02424062]
[1761182236235,0.08059,108470.0,108460.0,0.00460978]
[1761182236436,0.42804025,108470.0,108460.0,0.00460978]
[1761182237551,0.42804025,108470.0,108460.0,0.01801654]
[1761182237845,0.42804025,108470.0,108460.0,0.00460978]
[1761182238046,0.42904025,108470.0,108460.0,0.00460978]
[1761182238633,0.42804025,108470.0,108460.0,0.00460978]
[1761182238838,0.42904025,108470.0,108460.0,0.00460978]
[1761182239336,0.08168025,108470.0,108460.0,0.57925458]
[1761182239536,0.00109025,108470.0,108460.0,0.57925458]
[1761182239738,0.11757025,108470.0,108460.0,0.57925458]
[1761182240343,0.12057025,108470.0,108460.0,0.57925458]
[1761182240744,0.20116025,108470.0,108460.0,0.57925458]
[1761182240943,0.19916025,108470.0,108460.0,0.58225458]
[1761182241248,0.19716025,108470.0,108460.0,0.58325458]
[1761182243643,0.19716025,108470.0,108460.0,0.10079448]
[1761182244443,0.19716025,108470.0,108460.0,0.13501448]
[1761182244748,0.19716025,108470.0,108460.0,0.13401448]
[1761182245144,0.19716025,108470.0,108460.0,0.13101448]
[1761182245342,0.19716025,108470.0,108460.0,0.13401448]
[1761182246650,0.19716025,108470.0,108460.0,0.13101448]
[1761182246838,0.19716025,108470.0,108460.0,0.13301448]
[1761182247240,0.19716025,108470.0,108460.0,0.00660978]
[1761182247551,0.59716025,108470.0,108460.0,0.00660978]
[1761182248446,0.59716025,108470.0,108460.0,0.01999551]
[1761182249352,0.59916025,108470.0,108460.0,0.01999551]
[1761182249744,0.59916025,108470.0,108440.0,0.09228389]
[1761182249945,0.06981,108450.0,108440.0,0.10571051]
[1761182250251,0.41541209,108450.0,108440.0,0.09228389]
[1761182250853,0.41541209,108450.0,108440.0,0.1160295]
[1761182251252,0.41541209,108450.0,108440.0,0.11603408]
[1761182251447,0.41541209,108450.0,108440.0,0.18653408]
[1761182252160,0.41541209,108450.0,108440.0,0.18853408]
[1761182252647,0.41541209,108450.0,108440.0,0.16478389]
[1761182253252,0.41541209,108450.0,108440.0,0.14978389]
[1761182253448,0.41541209,108450.0,108440.0,0.14778389]
[1761182253646,0.41541209,108450.0,108440.0,0.15078389]
[1761182254056,0.41541209,108450.0,108440.0,0.14778389]
[1761182254257,0.41541209,108450.0,108440.0,0.17356585]
[1761182254953,0.81541209,108450.0,108440.0,0.02578196]
[1761182255157,0.81541209,108450.0,108420.0,0.03712439]
[1761182255158,0.06981,108430.0,108420.0,0.03712439]
[1761182255360,0.74501922,108430.0,108420.0,0.00461148]
[1761182255564,0.41454991,108430.0,108420.0,0.00461148]
[1761182256465,0.42601827,108430.0,108420.0,0.00561148]
[1761182256773,0.02157,108420.0,108390.0,0.0922401]
[1761182256971,0.41437,108410.0,108400.0,0.03422]
[1761182257165,0.41444988,108410.0,108400.0,0.03422]
[1761182257559,7.988e-05,108410.0,108400.0,0.91443511]
[1761182257959,7.988e-05,108410.0,108400.0,0.94694802]
[1761182258162,0.01444,108420.0,108410.0,0.1627273]
[1761182258561,0.01444,108420.0,108410.0,0.5627273]
[1761182259068,0.01452792,108420.0,108410.0,0.5627273]
[1761182259462,0.01452792,108420.0,108410.0,0.59524021]
[1761182259657,0.01452792,108420.0,108410.0,0.59824021]
[1761182260262,0.01552792,108420.0,108410.0,0.60624021]
[1761182260570,0.01552792,108420.0,108410.0,0.5737273]
[1761182261665,0.05158792,108420.0,108410.0,0.1737273]
[1761182261870,0.08533792,108420.0,108410.0,0.1737273]
[1761182262265,0.10690792,108420.0,108410.0,0.1737273]
[1761182263671,0.10690792,108420.0,108410.0,0.011]
[1761182266672,0.10690792,108420.0,108410.0,0.1032272]
[1761182267267,0.10690792,108420.0,108410.0,0.12683464]
[1761182267972,0.10690792,108420.0,108410.0,0.1032272]
[1761182270972,0.10690792,108420.0,108410.0,0.1737272]
[1761182271178,0.23158792,108420.0,108410.0,0.19688352]
[1761182271979,0.23158792,108420.0,108410.0,0.10465632]
[1761182272178,0.23158792,108420.0,108410.0,0.03415632]
[1761182272477,0.23158792,108420.0,108410.0,0.04758214]
[1761182272666,0.63158792,108420.0,108410.0,0.04758214]
[1761182273174,0.63158792,108420.0,108410.0,0.02442582]
[1761182275467,0.63158792,108420.0,108410.0,0.11665302]
[1761182275877,0.63158792,108420.0,108410.0,0.13983964]
[1761182276579,0.63158792,108420.0,108410.0,0.04761244]
[1761182278770,0.01164458,108450.0,108440.0,0.1748517]
[1761182279077,0.2551,108450.0,108440.0,0.90531691]
[1761182279379,0.28752,108450.0,108440.0,0.06543]
[1761182279779,0.28757225,108450.0,108440.0,0.08862278]
[1761182280270,0.29257225,108450.0,108440.0,0.18082448]
[1761182280472,0.29457225,108450.0,108440.0,0.18082448]
[1761182280674,0.30608455,108450.0,108440.0,0.08862278]
[1761182281270,0.30408455,108450.0,108440.0,0.08862278]
[1761182281570,1.03455386,108450.0,108440.0,0.02319278]
[1761182282078,0.70408455,108450.0,108440.0,0.02319278]
[1761182282279,0.69908455,108450.0,108440.0,0.02319278]
[1761182282679,0.08846,108440.0,108430.0,0.06543]
[1761182282879,0.08846,108440.0,108430.0,0.0886405]
[1761182283380,0.08846,108440.0,108430.0,0.1808507]
[1761182283770,0.06768,108440.0,108430.0,0.1808507]
[1761182283970,0.002,108440.0,108430.0,0.1808507]
[1761182284281,0.0048,108470.0,108460.0,0.1791447]
[1761182284473,0.0048,108470.0,108460.0,0.53282451]
[1761182284675,0.26168,108470.0,108460.0,0.2023552]
[1761182285067,0.0048,108470.0,108460.0,0.6023552]
[1761182285467,0.0058,108470.0,108460.0,0.6023552]
[1761182285874,0.06768,108500.0,108490.0,0.1575846]
[1761182286079,0.43534,108500.0,108480.0,0.1575976]
[1761182286274,0.07173226,108490.0,108480.0,0.1807728]
[1761182286469,0.07173226,108490.0,108480.0,0.0886052]
[1761182286676,0.06768,108490.0,108480.0,0.46543]
[1761182286879,0.03526,108490.0,108480.0,0.18074619]
[1761182287072,0.06768,108500.0,108490.0,0.1575893]
[1761182287278,0.07173226,108500.0,108490.0,0.1575893]
[1761182287582,0.41837226,108500.0,108490.0,0.1575893]
[1761182287781,0.07173226,108500.0,108490.0,0.1575893]
[1761182287983,0.09251226,108500.0,108490.0,0.06543]
[1761182288178,0.44195226,108500.0,108490.0,0.06543]
[1761182288375,0.09551226,108500.0,108490.0,0.06543]
[1761182288576,0.44187226,108500.0,108490.0,0.06543]
[1761182288979,0.44179226,108500.0,108490.0,0.06543]
[1761182289176,0.43979226,108500.0,108490.0,0.06543]
[1761182289377,0.44279226,108500.0,108490.0,0.06543]
[1761182289580,0.44271226,108500.0,108490.0,0.06543]
[1761182289775,0.09651226,108500.0,108490.0,0.06543]
[1761182290086,0.44259226,108500.0,108480.0,0.1575966]
[1761182290275,0.03931226,108490.0,108480.0,0.1575966]
[1761182290785,0.03526,108490.0,108480.0,0.1575966]
[1761182291677,0.03526,108490.0,108480.0,0.1595966]
[1761182292585,0.03526,108490.0,108480.0,0.1575966]
[1761182292774,0.03826,108490.0,108480.0,0.1575966]
[1761182292978,0.07473226,108490.0,108480.0,0.06543]
[1761182293178,0.08846,108480.0,108470.0,0.1576014]
[1761182293378,0.43799226,108480.0,108470.0,0.1576014]
[1761182293878,0.09251226,108480.0,108470.0,0.1576014]
[1761182294077,0.39121226,108480.0,108470.0,0.18066897]
[1761182294376,0.35879226,108480.0,108470.0,0.39981215]
[1761182294577,0.35879226,108480.0,108470.0,0.40281215]
[1761182295287,0.35879226,108480.0,108470.0,0.18366897]
[1761182295486,0.35879226,108480.0,108470.0,0.18066897]
[1761182295675,0.35879226,108480.0,108470.0,0.18266897]
[1761182295879,0.39121226,108480.0,108470.0,0.18266897]
[1761182297087,0.41199226,108480.0,108470.0,0.1596014]
[1761182297788,0.41199226,108480.0,108470.0,0.06743]
[1761182298287,0.41199226,108480.0,108470.0,0.1596062]
[1761182298787,0.41499226,108480.0,108470.0,0.1576062]
[1761182300290,0.41499226,108480.0,108470.0,0.06543]
[1761182300482,0.41499226,108480.0,108460.0,0.1576141]
[1761182300680,0.07173226,108470.0,108460.0,0.1576141]
[1761182301283,0.06768,108470.0,108460.0,0.1576141]
[1761182301790,0.06768,108470.0,108460.0,0.1821441]
[1761182302089,0.34026,108480.0,108470.0,0.1576062]
[1761182302090,0.38716,108480.0,108470.0,0.1576062]
[1761182302283,0.40684,108480.0,108470.0,0.1576062]
[1761182302486,0.41089226,108480.0,108470.0,0.1576062]
[1761182303088,0.43513226,108480.0,108470.0,0.1576062]
[1761182304383,0.43613226,108480.0,108470.0,0.1576062]
[1761182304894,0.43913226,108480.0,108470.0,0.1576062]
[1761182305892,0.04331226,108480.0,108470.0,0.1576062]
[1761182306087,0.004,108480.0,108470.0,0.77674938]
[1761182306481,0.34744,108480.0,108470.0,0.77674938]
[1761182307087,0.004,108480.0,108470.0,0.77674938]
[1761182307394,0.34632,108480.0,108470.0,0.77674938]
[1761182307595,0.34532,108480.0,108470.0,0.77674938]
[1761182307894,0.34632,108480.0,108470.0,0.77674938]
[1761182308096,0.34632,108480.0,108470.0,0.80002051]
[1761182308283,0.34432,108480.0,108470.0,0.80002051]
[1761182308487,0.07993,108500.0,108490.0,0.1517992]
[1761182308688,0.40644226,108500.0,108490.0,0.1517992]
[1761182308993,0.06320226,108500.0,108490.0,0.1517992]
[1761182309393,0.40616226,108500.0,108490.0,0.1517992]
[1761182309995,0.06320226,108500.0,108490.0,0.1517992]
[1761182310183,0.06620226,108500.0,108490.0,0.1517992]
[1761182310388,0.40904226,108500.0,108490.0,0.1517992]
[1761182310589,0.41004226,108500.0,108490.0,0.1517992]
[1761182310895,0.06720226,108500.0,108490.0,0.1517992]
[1761182311097,0.42719226,108500.0,108490.0,0.1517992]
[1761182311290,0.08439226,108500.0,108490.0,0.1517992]
[1761182311490,0.42707226,108500.0,108490.0,0.1517992]
[1761182311686,0.42691226,108500.0,108490.0,0.1517992]
[1761182312592,0.42691226,108500.0,108490.0,0.17510814]
[1761182312794,0.08439226,108500.0,108490.0,0.17510814]
[1761182312994,0.42691226,108500.0,108490.0,0.17510814]
[1761182313197,0.42667226,108500.0,108490.0,0.1517992]
[1761182313402,0.42667226,108500.0,108490.0,0.17512894]
[1761182314102,0.42667226,108500.0,108490.0,0.02432974]
[1761182314103,0.42367226,108500.0,108490.0,0.02432974]
[1761182314408,0.14910277,108550.0,108500.0,0.1689007]
[1761182314706,0.39903,108550.0,108540.0,0.07675]
[1761182315002,0.39903,108550.0,108540.0,0.38800998]
[1761182315203,0.40308226,108550.0,108540.0,0.05964]
[1761182315409,0.40308226,108550.0,108540.0,0.02329948]
[1761182315709,0.80308226,108550.0,108540.0,0.02329948]
[1761182315905,0.80408226,108550.0,108540.0,0.02329948]
[1761182316299,0.05915,108530.0,108520.0,0.17627102]
[1761182316598,0.40712226,108530.0,108520.0,0.19902351]
[1761182316797,0.40307,108530.0,108520.0,0.19902351]
[1761182317399,0.40707,108530.0,108520.0,0.19902351]
[1761182317600,0.40807,108530.0,108520.0,0.19902351]
[1761182318407,0.40807,108530.0,108520.0,0.17452619]
[1761182318996,0.41212226,108530.0,108520.0,0.17452619]
[1761182319598,0.41212226,108530.0,108520.0,0.02275249]
[1761182320113,0.05915,108510.0,108500.0,0.22601559]
[1761182320309,0.40235,108510.0,108500.0,0.21611377]
[1761182321010,0.40235,108510.0,108500.0,0.19901117]
[1761182321204,0.40640226,108510.0,108500.0,0.17451385]
[1761182321411,0.40335,108510.0,108500.0,0.59162385]
[1761182321615,0.3442,108510.0,108500.0,0.83526435]
[1761182322014,0.34692,108530.0,108500.0,0.86788932]
[1761182322317,0.07634,108540.0,108530.0,0.1517653]
[1761182322510,0.02944,108540.0,108530.0,0.37090848]
[1761182322713,0.34292,108540.0,108530.0,0.37090848]
[1761182323420,0.34792,108540.0,108530.0,0.37090848]
[1761182323617,0.34792,108540.0,108530.0,0.1517653]
[1761182323816,0.37736,108540.0,108530.0,0.1517653]
[1761182324017,0.40707,108540.0,108530.0,0.1517653]
[1761182326017,0.42831226,108540.0,108530.0,0.1517653]
[1761182327312,0.41044226,108540.0,108530.0,0.1517653]
[1761182329915,0.42763226,108540.0,108530.0,0.1517653]
[1761182330116,0.42763226,108540.0,108530.0,0.05367089]
[1761182330325,0.42763226,108540.0,108520.0,0.1517696]
[1761182330524,0.06320226,108530.0,108520.0,0.17436128]
[1761182330925,0.05915,108530.0,108520.0,0.1517696]
[1761182331228,0.42358,108540.0,108530.0,0.1517652]
[1761182331424,0.42358,108540.0,108530.0,0.05964]
[1761182331627,0.42763226,108540.0,108530.0,0.05964]
[1761182332025,0.41858,108540.0,108530.0,0.05964]
[1761182332227,0.07634,108520.0,108510.0,0.03108]
[1761182332433,0.42191226,108520.0,108510.0,0.08224235]
[1761182332631,0.42191226,108520.0,108510.0,0.10663285]
[1761182332823,0.42191226,108520.0,108510.0,0.02260235]
[1761182333024,0.42191226,108520.0,108510.0,0.08086235]
[1761182333224,0.42191226,108520.0,108510.0,0.02260235]
[1761182333525,0.82491226,108520.0,108510.0,0.02260235]
[1761182333833,0.82491226,108520.0,108490.0,0.1504115]
[1761182333834,0.07619,108500.0,108490.0,0.1504115]
[1761182334127,0.42160226,108500.0,108490.0,0.08088173]
[1761182334322,0.42160226,108500.0,108490.0,0.11478093]
[1761182334522,0.42160226,108500.0,108490.0,0.02262173]
[1761182334723,0.42160226,108500.0,108480.0,0.1504227]
[1761182334924,0.42160226,108500.0,108480.0,0.17305855]
[1761182334925,0.06274226,108490.0,108480.0,0.17305855]
[1761182335423,0.05869,108490.0,108480.0,0.17305855]